fUST/lending_fUST_20240801
["ID","MTS","AMOUNT","RATE_DAILY","PERIOD"]
[333808232,1722523840659,-515.09,0.00014244,2]
[333808234,1722523840669,-500.0,0.00014245,2]
[333808235,1722523840678,-500.0,0.00014245,2]
[333808236,1722523840689,-500.0,0.00014245,2]
[333808237,1722523840699,-500.0,0.00014245,2]
[333808238,1722523840708,-500.0,0.00014245,2]
[333808239,1722523840718,-500.0,0.00014245,2]
[333808240,1722523840728,-500.0,0.00014245,2]
[333808241,1722523840738,-500.0,0.00014245,2]
[333808242,1722523840748,-500.0,0.00014245,2]
[333808243,1722523840758,-541.81,0.00014245,2]
[333808244,1722523840767,-500.0,0.00014245,2]
[333808245,1722523840778,-500.0,0.00014245,2]
[333808246,1722523840787,-500.0,0.00014245,2]
[333808247,1722523840808,-500.0,0.00014245,2]
[333808248,1722523840822,-500.0,0.00014245,2]
[333808249,1722523840831,-500.0,0.00014245,2]
[333808250,1722523840841,-500.0,0.00014245,2]
[333808251,1722523840851,-500.0,0.00014245,2]
[333808252,1722523840860,-500.0,0.00014245,2]
[333808253,1722523840870,-500.0,0.00014245,2]
[333808254,1722523840879,-630.91535431,0.00014245,2]
[333808255,1722523840890,-500.0,0.00014245,2]
[333808256,1722523840899,-500.0,0.00014245,2]
[333808257,1722523840910,-837.68,0.00014245,2]
[333808258,1722523840919,-500.0,0.00014245,2]
[333808259,1722523840929,-500.0,0.00014245,2]
[333808260,1722523840939,-500.0,0.00014245,2]
[333808261,1722523840949,-891.57,0.00014245,2]
[333808262,1722523840959,-540.67,0.00014245,2]
[333808263,1722523840969,-645.4,0.00014245,2]
[333808264,1722523840979,-1832.64,0.00014245,2]
[333808265,1722523840988,-511.09580272,0.00014245,2]
[333808266,1722523841000,-500.0,0.00014245,2]
[333808267,1722523841010,-3435.53,0.00014245,2]
[333808268,1722523841021,-504.77000058,0.00014245,2]
[333808269,1722523841031,-2522.76,0.00014245,2]
[333808270,1722523841041,-500.0,0.00014245,2]
[333808271,1722523841051,-622.19503766,0.00014245,2]
[333808272,1722523841060,-500.0,0.00014245,2]
[333808273,1722523841074,-500.0,0.00014245,2]
[333808274,1722523841084,-500.0,0.00014245,2]
[333808275,1722523841094,-1752.69,0.00014245,2]
[333808276,1722523841105,-500.0,0.00014245,2]
[333808277,1722523841115,-210.58092546,0.00014245,2]
[333808278,1722523841127,-500.0,0.00014245,2]
[333808279,1722523841136,-500.0,0.00014245,2]
[333808280,1722523841146,-500.0,0.00014245,2]
[333808281,1722523841155,-3143.22,0.00014245,2]
[333808282,1722523841165,-920.96,0.00014245,2]
[333808283,1722523841175,-500.0,0.00014245,2]
[333808284,1722523841185,-606.36,0.00014245,2]
[333808285,1722523841196,-771.8,0.00014245,2]
[333808286,1722523841206,-173.40622975,0.00014245,2]
[333808287,1722523841216,-500.0,0.00014245,2]
[333808288,1722523841227,-500.0,0.00014245,2]
[333808289,1722523841236,-500.0,0.00014245,2]
[333808290,1722523841245,-589.36,0.00014245,2]
[333808291,1722523841255,-500.0,0.00014245,2]
[333808292,1722523841266,-500.0,0.00014245,2]
[333808293,1722523841278,-507.16405368,0.00014245,2]
[333808294,1722523841289,-500.0,0.00014245,2]
[333808295,1722523841299,-4881.72,0.00014245,2]
[333808296,1722523841310,-150.0,0.00014245,2]
[333808297,1722523841321,-500.0,0.00014245,2]
[333808298,1722523841331,-500.0,0.00014245,2]
[333808299,1722523841341,-500.0,0.00014245,2]
[333808300,1722523841351,-500.0,0.00014245,2]
[333808301,1722523841361,-500.0,0.00014245,2]
[333808302,1722523841371,-500.0,0.00014245,2]
[333808303,1722523841382,-500.0,0.00014245,2]
[333808304,1722523841392,-500.0,0.00014245,2]
[333808305,1722523841403,-500.0,0.00014245,2]
[333808306,1722523841414,-500.0,0.00014245,2]
[333808307,1722523841424,-541.78,0.00014245,2]
[333808308,1722523841434,-500.0,0.00014245,2]
[333808309,1722523841444,-505.11933782,0.00014245,2]
[333808310,1722523841455,-1115.17,0.00014245,2]
[333808311,1722523841465,-500.0,0.00014245,2]
[333808312,1722523841475,-1174.42,0.00014245,2]
[333808313,1722523841485,-500.0,0.00014245,2]
[333808314,1722523841495,-290.87315042,0.00014245,2]
[333808315,1722523841505,-500.0,0.00014245,2]
[333808316,1722523841514,-1091.2,0.00014245,2]
[333808317,1722523841524,-500.0,0.00014245,2]
[333808318,1722523841533,-500.0,0.00014245,2]
[333808319,1722523841544,-515.2,0.00014245,2]
[333808320,1722523841554,-474.96651649,0.00014245,2]
[333808321,1722523841564,-402.31522869,0.00014245,2]
[333808322,1722523841577,-500.0,0.00014245,2]
[333808323,1722523841587,-502.40720152,0.00014245,2]
[333808324,1722523841597,-500.0,0.00014245,2]
[333808325,1722523841608,-500.0,0.00014245,2]
[333808326,1722523841620,-500.0,0.00014245,2]
[333808327,1722523841630,-500.0,0.00014245,2]
[333808328,1722523841641,-837.05,0.00014245,2]
[333808329,1722523841654,-500.0,0.00014245,2]
[333808330,1722523841664,-505.54032336,0.00014245,2]
[333808331,1722523841674,-693.03,0.00014245,2]
[333808332,1722523841684,-500.0,0.00014245,2]
[333808333,1722523841695,-500.0,0.00014245,2]
[333808334,1722523841705,-503.75785229,0.00014245,2]
[333808335,1722523841714,-1546.25,0.00014245,2]
[333808336,1722523841724,-502.88311085,0.00014245,2]
[333808337,1722523841734,-506.86776513,0.00014245,2]
[333808338,1722523841743,-611.27353168,0.00014245,2]
[333808339,1722523841873,-500.0,0.00014245,2]
[333808340,1722523841884,-500.0,0.00014245,2]
[333808341,1722523841894,-500.0,0.00014245,2]
[333808342,1722523841904,-500.0,0.00014246,2]
[333808343,1722523841913,-500.0,0.00014246,2]
[333808344,1722523841922,-500.0,0.00014246,2]
[333808345,1722523841932,-500.0,0.00014246,2]
[333808346,1722523841942,-530.87,0.00014246,2]
[333808347,1722523841952,-500.0,0.00014246,2]
[333808348,1722523841962,-500.0,0.00014246,2]
[333808349,1722523841972,-500.0,0.00014246,2]
[333808350,1722523841982,-500.0,0.00014246,2]
[333808351,1722523841992,-500.0,0.00014246,2]
[333808352,1722523842001,-500.0,0.00014246,2]
[333808353,1722523842011,-743.42,0.00014246,2]
[333808354,1722523842023,-500.0,0.00014246,2]
[333808355,1722523842033,-615.57,0.00014246,2]
[333808356,1722523842043,-501.1,0.00014246,2]
[333808357,1722523842052,-500.0,0.00014246,2]
[333808358,1722523842062,-500.0,0.00014246,2]
[333808359,1722523842074,-500.0,0.00014246,2]
[333808360,1722523842083,-500.0,0.00014246,2]
[333808361,1722523842092,-500.0,0.00014246,2]
[333808362,1722523842102,-500.0,0.00014246,2]
[333808363,1722523842111,-500.0,0.00014246,2]
[333808364,1722523842122,-500.0,0.00014246,2]
[333808365,1722523842131,-500.0,0.00014246,2]
[333808366,1722523842140,-500.0,0.00014246,2]
[333808367,1722523842149,-500.0,0.00014246,2]
[333808368,1722523842159,-500.0,0.00014246,2]
[333808369,1722523842168,-567.98,0.00014246,2]
[333808370,1722523842178,-887.59,0.00014246,2]
[333808371,1722523842187,-3035.78,0.00014246,2]
[333808372,1722523842197,-2010.48,0.00014246,2]
[333808373,1722523842206,-512.37,0.00014246,2]
[333808374,1722523842216,-588.94,0.00014246,2]
[333808375,1722523842226,-620.23,0.00014246,2]
[333808376,1722523842235,-556.36,0.00014246,2]
[333808377,1722523842245,-500.0,0.00014246,2]
[333808378,1722523842255,-500.0,0.00014246,2]
[333808379,1722523842264,-500.0,0.00014246,2]
[333808380,1722523842274,-500.0,0.00014246,2]
[333808381,1722523842284,-500.0,0.00014246,2]
[333808382,1722523842293,-500.0,0.00014246,2]
[333808383,1722523842302,-591.79,0.00014246,2]
[333808384,1722523842312,-712.5,0.00014247,2]
[333808385,1722523842323,-515.09,0.00014363,2]
[333808386,1722523842333,-170.765624,0.00014363,2]
[333808387,1722523842343,-193.896966,0.00014363,2]
[333808388,1722523842353,-223.3864,0.00014363,2]
[333808389,1722523842363,-202.264745,0.00014363,2]
[333808390,1722523842372,-9883.9378741,0.0001442,2]
[333808391,1722523842383,-200.0,0.00014486,2]
[333808392,1722523842392,-200.12635228,0.00014486,2]
[333808393,1722523842402,-515.09,0.00014518,2]
[333808394,1722523842413,-515.09,0.00014518,2]
[333808395,1722523842422,-500.0,0.00014519,2]
[333808396,1722523842432,-500.0,0.00014519,2]
[333808397,1722523842442,-500.0,0.00014519,2]
[333808398,1722523842452,-500.0,0.00014519,2]
[333808399,1722523842462,-500.0,0.00014519,2]
[333808400,1722523842472,-500.0,0.00014519,2]
[333808401,1722523842482,-541.81,0.00014519,2]
[333808402,1722523842492,-500.0,0.00014519,2]
[333808403,1722523842502,-500.0,0.00014519,2]
[333808404,1722523842511,-500.0,0.00014519,2]
[333808405,1722523842521,-500.0,0.00014519,2]
[333808406,1722523842531,-500.0,0.00014519,2]
[333808407,1722523842541,-506.29276197,0.00014519,2]
[333808408,1722523842551,-837.68,0.00014519,2]
[333808409,1722523842561,-173.0145936,0.00014519,2]
[333808410,1722523842573,-500.0,0.00014519,2]
[333808411,1722523842583,-891.57,0.00014519,2]
[333808413,1722523842596,-540.67,0.00014519,2]
[333808414,1722523842606,-645.4,0.00014519,2]
[333808415,1722523842618,-1832.64,0.00014519,2]
[333808416,1722523842628,-500.0,0.00014519,2]
[333808417,1722523842637,-2522.76,0.00014519,2]
[333808418,1722523842648,-3435.53,0.00014519,2]
[333808419,1722523842658,-506.85517019,0.00014519,2]
[333808420,1722523842667,-500.0,0.00014519,2]
[333808421,1722523842676,-1752.69,0.00014519,2]
[333808422,1722523842689,-500.0,0.00014519,2]
[333808423,1722523842699,-500.0,0.00014519,2]
[333808427,1722523842709,-500.0,0.00014519,2]
[333808430,1722523842719,-3143.22,0.00014519,2]
[333808432,1722523842728,-920.96,0.00014519,2]
[333808433,1722523842738,-606.36,0.00014519,2]
[333808435,1722523842748,-771.8,0.00014519,2]
[333808437,1722523842757,-500.0,0.00014519,2]
[333808439,1722523842767,-500.0,0.00014519,2]
[333808441,1722523842777,-589.36,0.00014519,2]
[333808443,1722523842787,-500.0,0.00014519,2]
[333808444,1722523842796,-500.0,0.00014519,2]
[333808446,1722523842805,-500.0,0.00014519,2]
[333808447,1722523842816,-500.0,0.00014519,2]
[333808448,1722523842834,-500.0,0.00014519,2]
[333808449,1722523842844,-500.0,0.00014519,2]
[333808450,1722523842854,-500.0,0.00014519,2]
[333808451,1722523842864,-500.0,0.00014519,2]
[333808452,1722523842874,-541.78,0.00014519,2]
[333808453,1722523842883,-500.0,0.00014519,2]
[333808454,1722523842893,-1115.17,0.00014519,2]
[333808455,1722523842902,-1174.42,0.00014519,2]
[333808456,1722523842911,-500.0,0.00014519,2]
[333808457,1722523842921,-1091.2,0.00014519,2]
[333808458,1722523842931,-506.33901798,0.00014519,2]
[333808459,1722523842940,-500.0,0.00014519,2]
[333808461,1722523842951,-515.2,0.00014519,2]
[333808463,1722523842960,-500.0,0.00014519,2]
[333808465,1722523842982,-500.0,0.00014519,2]
[333808466,1722523842992,-500.0,0.00014519,2]
[333808467,1722523843002,-455.37241177,0.00014519,2]
[333808468,1722523843012,-837.05,0.00014519,2]
[333808469,1722523843022,-693.03,0.00014519,2]
[333808471,1722523843032,-500.0,0.00014519,2]
[333808473,1722523843043,-1546.25,0.00014519,2]
[333808474,1722523843054,-500.0,0.00014519,2]
[333808475,1722523843064,-500.0,0.0001452,2]
[333808476,1722523843079,-500.0,0.0001452,2]
[333808477,1722523843089,-500.0,0.0001452,2]
[333808478,1722523843099,-530.87,0.0001452,2]
[333808479,1722523843109,-500.0,0.0001452,2]
[333808480,1722523843120,-500.0,0.0001452,2]
[333808481,1722523843130,-500.0,0.0001452,2]
[333808482,1722523843141,-500.0,0.0001452,2]
[333808483,1722523843151,-500.0,0.0001452,2]
[333808484,1722523843162,-500.0,0.0001452,2]
[333808485,1722523843171,-743.42,0.0001452,2]
[333808486,1722523843181,-500.0,0.0001452,2]
[333808488,1722523843191,-615.57,0.0001452,2]
[333808489,1722523843201,-501.1,0.0001452,2]
[333808491,1722523843211,-500.0,0.0001452,2]
[333808493,1722523843222,-500.0,0.0001452,2]
[333808495,1722523843232,-500.0,0.0001452,2]
[333808497,1722523843242,-500.0,0.0001452,2]
[333808499,1722523843253,-500.0,0.0001452,2]
[333808501,1722523843264,-500.0,0.0001452,2]
[333808503,1722523843274,-500.0,0.0001452,2]
[333808505,1722523843284,-500.0,0.0001452,2]
[333808506,1722523843294,-500.0,0.0001452,2]
[333808507,1722523843304,-567.98,0.0001452,2]
[333808508,1722523843315,-887.59,0.0001452,2]
[333808510,1722523843329,-3035.78,0.0001452,2]
[333808511,1722523843339,-2010.48,0.0001452,2]
[333808513,1722523843348,-512.37,0.0001452,2]
[333808515,1722523843357,-588.94,0.0001452,2]
[333808516,1722523843367,-620.23,0.0001452,2]
[333808517,1722523843377,-556.36,0.0001452,2]
[333808518,1722523843387,-500.0,0.0001452,2]
[333808519,1722523843397,-500.0,0.0001452,2]
[333808520,1722523843408,-500.0,0.0001452,2]
[333808521,1722523843418,-500.0,0.0001452,2]
[333808522,1722523843428,-500.0,0.0001452,2]
[333808523,1722523843439,-500.0,0.0001452,2]
[333808524,1722523843450,-591.79,0.0001452,2]
[333808525,1722523843460,-193.896966,0.00014543,2]
[333808526,1722523843470,-515.09,0.00014583,2]
[333808527,1722523843480,-170.765624,0.00014603,2]
[333808528,1722523843490,-200.0,0.00014693,2]
[333808529,1722523843500,-193.896966,0.00014722,2]
[333808530,1722523843510,-515.09,0.00014783,2]
[333808531,1722523843520,-515.09,0.00014792,2]
[333808532,1722523843530,-500.0,0.00014793,2]
[333808533,1722523843539,-500.0,0.00014793,2]
[333808534,1722523843550,-500.0,0.00014793,2]
[333808535,1722523843559,-260.47051285,0.00014793,2]
[333808536,1722523843569,-500.0,0.00014793,2]
[333808537,1722523843582,-500.0,0.00014793,2]
[333808538,1722523843591,-541.81,0.00014793,2]
[333808539,1722523843606,-500.0,0.00014793,2]
[333808540,1722523843616,-500.0,0.00014793,2]
[333808541,1722523843627,-500.0,0.00014793,2]
[333808542,1722523843637,-500.0,0.00014793,2]
[333808543,1722523843648,-837.68,0.00014793,2]
[333808544,1722523843659,-891.57,0.00014793,2]
[333808545,1722523843669,-540.67,0.00014793,2]
[333808546,1722523843680,-645.4,0.00014793,2]
[333808547,1722523843690,-1832.64,0.00014793,2]
[333808548,1722523843701,-500.0,0.00014793,2]
[333808549,1722523843711,-2522.76,0.00014793,2]
[333808550,1722523843724,-3435.53,0.00014793,2]
[333808551,1722523843733,-500.0,0.00014793,2]
[333808552,1722523843743,-1752.69,0.00014793,2]
[333808553,1722523843753,-500.0,0.00014793,2]
[333808554,1722523843764,-3143.22,0.00014793,2]
[333808555,1722523843774,-920.96,0.00014793,2]
[333808556,1722523843784,-606.36,0.00014793,2]
[333808557,1722523843794,-771.8,0.00014793,2]
[333808558,1722523843804,-500.0,0.00014793,2]
[333808559,1722523843814,-500.0,0.00014793,2]
[333808560,1722523843830,-589.36,0.00014793,2]
[333808561,1722523843840,-500.0,0.00014793,2]
[333808562,1722523843850,-500.0,0.00014793,2]
[333808563,1722523843860,-500.0,0.00014793,2]
[333808564,1722523843870,-500.0,0.00014793,2]
[333808565,1722523843880,-500.0,0.00014793,2]
[333808566,1722523843891,-500.0,0.00014793,2]
[333808567,1722523843900,-500.0,0.00014793,2]
[333808568,1722523843910,-500.0,0.00014793,2]
[333808569,1722523843920,-541.78,0.00014793,2]
[333808570,1722523843930,-500.0,0.00014793,2]
[333808571,1722523843940,-1115.17,0.00014793,2]
[333808572,1722523843950,-1174.42,0.00014793,2]
[333808573,1722523843961,-500.0,0.00014793,2]
[333808574,1722523843970,-1091.2,0.00014793,2]
[333808575,1722523843980,-500.0,0.00014793,2]
[333808576,1722523843990,-515.2,0.00014793,2]
[333808577,1722523844003,-500.0,0.00014793,2]
[333808578,1722523844013,-500.0,0.00014793,2]
[333808579,1722523844023,-837.05,0.00014793,2]
[333808580,1722523844033,-693.03,0.00014793,2]
[333808581,1722523844043,-500.0,0.00014793,2]
[333808582,1722523844053,-1546.25,0.00014793,2]
[333808583,1722523844063,-500.0,0.00014793,2]
[333808584,1722523844078,-500.0,0.00014794,2]
[333808585,1722523844088,-500.0,0.00014794,2]
[333808586,1722523844098,-500.0,0.00014794,2]
[333808587,1722523844224,-530.87,0.00014794,2]
[333808588,1722523844234,-500.0,0.00014794,2]
[333808589,1722523844244,-500.0,0.00014794,2]
[333808590,1722523844254,-500.0,0.00014794,2]
[333808591,1722523844263,-500.0,0.00014794,2]
[333808592,1722523844273,-500.0,0.00014794,2]
[333808593,1722523844282,-500.0,0.00014794,2]
[333808594,1722523844292,-743.42,0.00014794,2]
[333808595,1722523844301,-500.0,0.00014794,2]
[333808596,1722523844312,-615.57,0.00014794,2]
[333808597,1722523844326,-501.1,0.00014794,2]
[333808598,1722523844336,-500.0,0.00014794,2]
[333808599,1722523844345,-500.0,0.00014794,2]
[333808600,1722523844356,-500.0,0.00014794,2]
[333808601,1722523844367,-500.0,0.00014794,2]
[333808602,1722523844377,-500.0,0.00014794,2]
[333808603,1722523844387,-500.0,0.00014794,2]
[333808604,1722523844397,-500.0,0.00014794,2]
[333808605,1722523844408,-500.0,0.00014794,2]
[333808606,1722523844418,-500.0,0.00014794,2]
[333808607,1722523844428,-567.98,0.00014794,2]
[333808608,1722523844437,-887.59,0.00014794,2]
[333808609,1722523844447,-3035.78,0.00014794,2]
[333808610,1722523844457,-2010.48,0.00014794,2]
[333808611,1722523844467,-512.37,0.00014794,2]
[333808612,1722523844477,-588.94,0.00014794,2]
[333808613,1722523844487,-620.23,0.00014794,2]
[333808614,1722523844496,-556.36,0.00014794,2]
[333808615,1722523844506,-500.0,0.00014794,2]
[333808616,1722523844517,-500.0,0.00014794,2]
[333808617,1722523844527,-500.0,0.00014794,2]
[333808618,1722523844536,-500.0,0.00014794,2]
[333808619,1722523844545,-500.0,0.00014794,2]
[333808620,1722523844555,-500.0,0.00014794,2]
[333808621,1722523844566,-591.79,0.00014794,2]
[333808622,1722523844579,-170.765624,0.00014842,2]
[333808623,1722523844588,-193.896966,0.00014902,2]
[333808624,1722523844597,-587.0,0.00014923,2]
[333808625,1722523844607,-3000.0,0.00015,30]
[333808626,1722523844620,-5676.91188,0.0001501,30]
[333808627,1722523844630,-515.09,0.00015047,2]
[333808628,1722523844640,-515.09,0.00015066,2]
[333808629,1722523844652,-500.0,0.00015067,2]
[333808630,1722523844662,-500.0,0.00015067,2]
[333808631,1722523844671,-500.0,0.00015067,2]
[333808632,1722523844681,-500.0,0.00015067,2]
[333808633,1722523844690,-500.0,0.00015067,2]
[333808634,1722523844700,-541.81,0.00015067,2]
[333808635,1722523844710,-500.0,0.00015067,2]
[333808636,1722523844720,-500.0,0.00015067,2]
[333808637,1722523844729,-500.0,0.00015067,2]
[333808638,1722523844740,-500.0,0.00015067,2]
[333808639,1722523844749,-837.68,0.00015067,2]
[333808640,1722523844758,-891.57,0.00015067,2]
[333808641,1722523844768,-540.67,0.00015067,2]
[333808642,1722523844778,-645.4,0.00015067,2]
[333808643,1722523844788,-1832.64,0.00015067,2]
[333808644,1722523844797,-500.0,0.00015067,2]
[333808645,1722523844807,-2522.76,0.00015067,2]
[333808646,1722523844817,-3435.53,0.00015067,2]
[333808647,1722523844830,-500.0,0.00015067,2]
[333808648,1722523844840,-1752.69,0.00015067,2]
[333808649,1722523844851,-500.0,0.00015067,2]
[333808650,1722523844861,-3143.22,0.00015067,2]
[333808651,1722523844871,-920.96,0.00015067,2]
[333808652,1722523844881,-771.8,0.00015067,2]
[333808653,1722523844891,-500.0,0.00015067,2]
[333808654,1722523844901,-500.0,0.00015067,2]
[333808655,1722523844910,-589.36,0.00015067,2]
[333808656,1722523844920,-500.0,0.00015067,2]
[333808657,1722523844931,-500.0,0.00015067,2]
[333808658,1722523844940,-606.36,0.00015067,2]
[333808659,1722523844950,-500.0,0.00015067,2]
[333808660,1722523844960,-500.0,0.00015067,2]
[333808661,1722523844969,-500.0,0.00015067,2]
[333808662,1722523844979,-500.0,0.00015067,2]
[333808663,1722523844988,-500.0,0.00015067,2]
[333808664,1722523844998,-541.78,0.00015067,2]
[333808665,1722523845007,-500.0,0.00015067,2]
[333808666,1722523845017,-1115.17,0.00015067,2]
[333808667,1722523845027,-1174.42,0.00015067,2]
[333808668,1722523845036,-500.0,0.00015067,2]
[333808669,1722523845046,-1091.2,0.00015067,2]
[333808670,1722523845056,-500.0,0.00015067,2]
[333808671,1722523845065,-515.2,0.00015067,2]
[333808672,1722523845077,-500.0,0.00015067,2]
[333808673,1722523845087,-500.0,0.00015067,2]
[333808674,1722523845097,-837.05,0.00015067,2]
[333808675,1722523845107,-693.03,0.00015067,2]
[333808676,1722523845117,-500.0,0.00015067,2]
[333808677,1722523845127,-1546.25,0.00015067,2]
[333808678,1722523845136,-500.0,0.00015067,2]
[333808679,1722523845146,-515.09,0.00015067,2]
[333808680,1722523845155,-500.0,0.00015068,2]
[333808681,1722523845165,-530.87,0.00015068,2]
[333808682,1722523845175,-500.0,0.00015068,2]
[333808683,1722523845185,-603.66053025,0.00015068,2]
[333808684,1722523845195,-346.43905699,0.00015068,2]
[333808685,1722523845204,-211.39967302,0.00015068,2]
[333808686,1722523845214,-500.0,0.00015068,2]
[333808687,1722523845224,-500.0,0.00015068,2]
[333808688,1722523845234,-743.42,0.00015068,2]
[333808689,1722523845243,-500.0,0.00015068,2]
[333808690,1722523845253,-615.57,0.00015068,2]
[333808691,1722523845263,-501.1,0.00015068,2]
[333808692,1722523845274,-500.0,0.00015068,2]
[333808693,1722523845284,-500.0,0.00015068,2]
[333808694,1722523845294,-500.0,0.00015068,2]
[333808695,1722523845304,-500.0,0.00015068,2]
[333808696,1722523845314,-500.0,0.00015068,2]
[333808697,1722523845326,-500.0,0.00015068,2]
[333808698,1722523845335,-500.0,0.00015068,2]
[333808699,1722523845346,-500.0,0.00015068,2]
[333808700,1722523845356,-500.0,0.00015068,2]
[333808701,1722523845367,-567.98,0.00015068,2]
[333808702,1722523845377,-887.59,0.00015068,2]
[333808703,1722523845386,-3035.78,0.00015068,2]
[333808704,1722523845395,-2010.48,0.00015068,2]
[333808705,1722523845405,-512.37,0.00015068,2]
[333808706,1722523845415,-588.94,0.00015068,2]
[333808707,1722523845424,-620.23,0.00015068,2]
[333808708,1722523845434,-556.36,0.00015068,2]
[333808709,1722523845444,-500.0,0.00015068,2]
[333808710,1722523845453,-500.0,0.00015068,2]
[333808711,1722523845463,-500.0,0.00015068,2]
[333808712,1722523845473,-610.60471447,0.00015068,2]
[333808713,1722523845484,-500.0,0.00015068,2]
[333808714,1722523845494,-500.0,0.00015068,2]
[333808715,1722523845504,-591.79,0.00015068,2]
[333808716,1722523845514,-193.896966,0.00015082,2]
[333808717,1722523845523,-170.765624,0.00015082,2]
[333808718,1722523845533,-223.3864,0.00015082,2]
[333808719,1722523845543,-202.264745,0.00015082,2]
[333808720,1722523845553,-515.09,0.0001523,2]
[333808721,1722523845563,-515.09,0.0001523,2]
[333808722,1722523845573,-515.09,0.0001523,2]
[333808723,1722523845583,-515.09,0.0001523,2]
[333808724,1722523845592,-515.3153,0.0001523,2]
[333808725,1722523845606,-65685.93814557,0.00015241,2]
[333808733,1722523845948,175.61437753,0.00012292,2]
[333808734,1722523846020,-36.09474564,0.00012292,2]
[333808735,1722523846031,-500.0,0.00013698,2]
[333808736,1722523846130,-511.38,0.00013972,2]
[333808737,1722523846142,-3256.18599965,0.00015241,2]
[333808738,1722523846151,-500.0,0.00015341,2]
[333808739,1722523846161,-500.0,0.00015341,2]
[333808741,1722523846170,-500.0,0.00015341,2]
[333808743,1722523846180,-500.0,0.00015341,2]
[333808745,1722523846191,-500.0,0.00015341,2]
[333808746,1722523846201,-541.81,0.00015341,2]
[333808747,1722523846211,-500.0,0.00015341,2]
[333808748,1722523846222,-500.0,0.00015341,2]
[333808749,1722523846231,-500.0,0.00015341,2]
[333808750,1722523846240,-500.0,0.00015341,2]
[333808751,1722523846250,-837.68,0.00015341,2]
[333808752,1722523846260,-891.57,0.00015341,2]
[333808754,1722523846269,-540.67,0.00015341,2]
[333808756,1722523846279,-645.4,0.00015341,2]
[333808758,1722523846289,-500.0,0.00015341,2]
[333808759,1722523846299,-2522.76,0.00015341,2]
[333808760,1722523846309,-3435.53,0.00015341,2]
[333808761,1722523846319,-500.0,0.00015341,2]
[333808762,1722523846330,-1752.69,0.00015341,2]
[333808763,1722523846340,-500.0,0.00015341,2]
[333808764,1722523846349,-3143.22,0.00015341,2]
[333808765,1722523846358,-920.96,0.00015341,2]
[333808767,1722523846367,-771.8,0.00015341,2]
[333808769,1722523846376,-500.0,0.00015341,2]
[333808770,1722523846386,-325.06386117,0.00015341,2]
[333808772,1722523846397,-589.36,0.00015341,2]
[333808773,1722523846406,-500.0,0.00015341,2]
[333808774,1722523846418,-500.0,0.00015341,2]
[333808775,1722523846428,-606.36,0.00015341,2]
[333808776,1722523846438,-500.0,0.00015341,2]
[333808777,1722523846448,-500.0,0.00015341,2]
[333808778,1722523846458,-500.0,0.00015341,2]